bitfinex/quotes_BTCUSD_20241205
["timestamp","ask_amount","ask_price","bid_price","bid_amount"]
[1733413749985,0.70029997,101480.0,101460.0,0.15]
[1733413750195,0.59999998,101470.0,101460.0,0.15]
[1733413750626,0.536,101470.0,101460.0,0.15]
[1733413750913,0.29677805,101470.0,101460.0,0.15]
[1733413752879,1.34898599,101480.0,101460.0,0.15]
[1733413753091,1.05446904,101480.0,101460.0,0.15]
[1733413753502,1.29123585,101480.0,101460.0,0.15]
[1733413753706,1.44466201,101480.0,101460.0,0.15]
[1733413753912,1.44465801,101480.0,101460.0,0.15]
[1733413754124,0.0017358,101470.0,101460.0,0.15]
[1733413754343,0.0017358,101470.0,101460.0,0.25066169]
[1733413754554,0.0017358,101470.0,101460.0,0.34823705]
[1733413754989,0.0017358,101470.0,101460.0,0.24967605]
[1733413755201,0.0017358,101470.0,101460.0,0.15]
[1733413755410,0.1988378,101470.0,101460.0,0.15]
[1733413755636,0.39643307,101470.0,101460.0,0.15]
[1733413755909,0.29851385,101470.0,101460.0,0.15]
[1733413758695,0.39851385,101470.0,101460.0,0.12139141]
[1733413758970,0.39851385,101470.0,101360.0,0.1166206]
[1733413758971,0.1,101430.0,101360.0,0.1166206]
[1733413759182,0.1297,101400.0,101360.0,0.10054365]
[1733413759415,0.197277,101380.0,101360.0,0.00385928]
[1733413759627,0.536,101370.0,101360.0,0.0008676]
[1733413760299,0.536,101370.0,101360.0,0.10054365]
[1733413760511,0.536,101370.0,101360.0,0.20018818]
[1733413760723,0.536,101370.0,101360.0,0.19920165]
[1733413761383,0.536,101380.0,101360.0,0.0008676]
[1733413761605,0.536,101370.0,101360.0,0.0008676]
[1733413761847,0.536,101370.0,101360.0,0.0088676]
[1733413762051,0.536,101370.0,101360.0,0.0008676]
[1733413762312,0.29697305,101370.0,101360.0,0.0008676]
[1733413762531,0.29697305,101370.0,101360.0,0.0048676]
[1733413762738,0.39138094,101370.0,101360.0,0.0008676]
[1733413763170,0.39138094,101370.0,101360.0,0.0048676]
[1733413763613,0.32338093,101370.0,101360.0,0.0048676]
[1733413763835,0.19408394,101370.0,101360.0,0.0048676]
[1733413764044,0.29697305,101370.0,101360.0,0.0048676]
[1733413764280,0.6471058,101380.0,101360.0,0.0068676]
[1733413764281,0.473777,101380.0,101360.0,0.0068676]
[1733413764504,0.197297,101370.0,101360.0,0.0068676]
[1733413764929,0.197297,101370.0,101360.0,0.0028676]
[1733413765137,0.37404806,101370.0,101360.0,0.0028676]
[1733413766492,0.29697305,101370.0,101360.0,0.0028676]
[1733413766736,0.0792,101380.0,101360.0,0.0028676]
[1733413766946,0.29697305,101370.0,101360.0,0.0028676]
[1733413768767,0.09967605,101370.0,101360.0,0.0028676]
[1733413768977,0.29697305,101370.0,101360.0,0.0028676]
[1733413769182,0.473772,101380.0,101360.0,0.0028676]
[1733413769392,0.62570225,101380.0,101360.0,0.0028676]
[1733413769594,0.197297,101370.0,101360.0,0.0028676]
[1733413769798,0.29697305,101370.0,101360.0,0.0028676]
[1733413770499,0.34207305,101370.0,101360.0,6e-07]
[1733413770723,0.197316,101360.0,101350.0,0.0008676]
[1733413770954,0.37848216,101360.0,101350.0,0.0008676]
[1733413771166,0.37848216,101360.0,101340.0,0.0008676]
[1733413771167,0.297335,101350.0,101340.0,0.0008676]
[1733413771429,0.320655,101340.0,101330.0,0.00012884]
[1733413771656,0.52033105,101340.0,101330.0,0.00012884]
[1733413772301,0.42033105,101340.0,101330.0,0.00012884]
[1733413772532,0.52033105,101340.0,101330.0,0.00012884]
[1733413772992,0.42033105,101340.0,101330.0,0.00012884]
[1733413773448,0.197335,101350.0,101330.0,0.00012884]
[1733413773652,0.197347,101350.0,101330.0,0.00012884]
[1733413773905,0.197355,101340.0,101330.0,0.00012884]
[1733413774130,0.41550376,101340.0,101330.0,0.00012884]
[1733413774564,0.49630376,101340.0,101330.0,0.00012884]
[1733413774996,0.29894876,101340.0,101330.0,0.00012884]
[1733413775246,0.49630376,101340.0,101330.0,0.00012884]
[1733413776131,0.197434,101300.0,101280.0,0.00031024]
[1733413776359,0.197423,101310.0,101280.0,0.31720329]
[1733413776564,0.197404,101320.0,101290.0,0.108598]
[1733413776774,0.394808,101320.0,101290.0,0.31687205]
[1733413776983,0.197404,101320.0,101290.0,0.31686705]
[1733413777199,0.197404,101320.0,101290.0,0.31686205]
[1733413777401,0.35629455,101320.0,101280.0,0.1878]
[1733413777627,0.55370055,101320.0,101280.0,0.39607905]
[1733413777836,0.35629455,101320.0,101280.0,0.17887605]
[1733413778046,0.35629455,101320.0,101270.0,0.10892524]
[1733413778047,0.09967605,101300.0,101260.0,0.11194443]
[1733413778272,0.31980066,101300.0,101260.0,0.32024148]
[1733413778500,0.51724566,101300.0,101260.0,0.33493589]
[1733413778715,0.39489,101300.0,101270.0,0.09967605]
[1733413778934,0.592335,101300.0,101270.0,0.10405203]
[1733413779142,0.49280922,101300.0,101270.0,0.21267203]
[1733413779364,0.39504027,101300.0,101270.0,0.00437598]
[1733413779567,0.59248927,101300.0,101270.0,0.00437598]
[1733413779790,0.197472,101280.0,101270.0,0.00437598]
[1733413780020,0.536,101280.0,101270.0,0.00437598]
[1733413780242,0.536,101280.0,101250.0,0.02216577]
[1733413780243,0.536,101270.0,101250.0,0.02216577]
[1733413780480,0.536,101280.0,101250.0,0.20275419]
[1733413780706,0.536,101280.0,101270.0,0.00437371]
[1733413780924,0.83314805,101280.0,101270.0,0.00437371]
[1733413781218,0.197498,101270.0,101250.0,0.0208679]
[1733413781432,0.83315805,101280.0,101270.0,0.00437371]
[1733413781711,0.86964105,101280.0,101270.0,0.00437371]
[1733413781924,0.197511,101260.0,101250.0,0.0208679]
[1733413782132,0.83318105,101270.0,101250.0,0.0208679]
[1733413782342,0.29718705,101260.0,101250.0,0.0208679]
[1733413782785,0.29718705,101260.0,101250.0,0.02529921]
[1733413783004,0.39718705,101260.0,101250.0,0.02529921]
[1733413783224,0.29718705,101260.0,101250.0,0.02229921]
[1733413783686,0.42218705,101260.0,101250.0,0.0178679]
[1733413783902,0.69864693,101260.0,101250.0,0.0178679]
[1733413784545,0.59864693,101260.0,101250.0,0.0178679]
[1733413784749,0.52218705,101260.0,101250.0,0.0178679]
[1733413784965,0.62218705,101260.0,101250.0,0.0178679]
[1733413785170,0.54184392,101260.0,101250.0,0.0178679]
[1733413785387,0.44184392,101260.0,101250.0,0.02232195]
[1733413785600,0.72552951,101260.0,101250.0,0.02232195]
[1733413786021,0.72552951,101260.0,101250.0,0.0178679]
[1733413786022,0.62552951,101260.0,101250.0,0.0178679]
[1733413786230,0.72552951,101260.0,101250.0,0.0178679]
[1733413786435,0.62552951,101260.0,101250.0,0.0178679]
[1733413786691,0.72552951,101260.0,101250.0,0.0178679]
[1733413787150,0.62552951,101260.0,101250.0,0.0178679]
[1733413787378,0.66743978,101260.0,101250.0,0.0178679]
[1733413788064,0.74051551,101260.0,101250.0,0.0178679]
[1733413788277,0.64051551,101260.0,101250.0,0.0134709]
[1733413788703,0.395115,101240.0,101220.0,0.00798434]
[1733413788924,0.19755,101240.0,101220.0,0.0076741]
[1733413789132,0.395087,101250.0,101220.0,0.0076741]
[1733413789363,0.49476305,101250.0,101220.0,0.0076741]
[1733413789571,0.49475905,101250.0,101220.0,0.0076741]
[1733413789791,0.197551,101240.0,101220.0,0.0076741]
[1733413790020,0.13352479,101260.0,101230.0,0.108663]
[1733413790252,0.29893625,101260.0,101220.0,0.32468515]
[1733413790489,0.49645825,101260.0,101220.0,0.32468315]
[1733413790711,0.39507,101250.0,101220.0,0.21601615]
[1733413790914,0.197559,101240.0,101220.0,0.0076741]
[1733413791118,0.42484351,101240.0,101220.0,0.0076741]
[1733413791360,0.22728251,101240.0,101230.0,0.00498592]
[1733413791615,0.297687,101170.0,101160.0,0.0009189]
[1733413791867,0.47436305,101170.0,101160.0,0.0009189]
[1733413792104,0.09967605,101170.0,101160.0,0.0009189]
[1733413792323,0.09967605,101170.0,101160.0,0.00534721]
[1733413792556,0.09967605,101170.0,101160.0,0.0009189]
[1733413792807,0.32709896,101170.0,101160.0,0.0053376]
[1733413793049,0.32709896,101170.0,101160.0,0.0009189]
[1733413793287,0.29736305,101170.0,101160.0,0.00442169]
[1733413793542,0.197726,101150.0,101140.0,0.1308878]
[1733413793783,0.09967605,101150.0,101140.0,0.1308878]
[1733413794021,0.09967605,101150.0,101140.0,0.0008689]
[1733413794260,0.29740205,101150.0,101140.0,0.0008689]
[1733413794540,0.29740205,101150.0,101140.0,0.017065]
[1733413794777,0.197696,101170.0,101140.0,0.017065]
[1733413795013,0.29738205,101160.0,101140.0,0.017065]
[1733413795457,0.49510405,101160.0,101140.0,0.017065]
[1733413795744,0.49510305,101160.0,101140.0,0.017065]
[1733413795972,0.09967605,101160.0,101140.0,0.017065]
[1733413796216,0.09967605,101160.0,101140.0,0.135965]
[1733413796715,0.545358,101180.0,101140.0,0.34439305]
[1733413796949,0.24967605,101180.0,101150.0,0.10874]
[1733413797183,0.24967605,101180.0,101140.0,0.244716]
[1733413797184,0.63567605,101170.0,101140.0,0.244716]
[1733413797428,0.15,101180.0,101150.0,0.17937605]
[1733413797676,0.15,101180.0,101170.0,0.108727]
[1733413797905,0.165,101180.0,101160.0,0.108729]
[1733413798133,0.15,101180.0,101150.0,0.21555529]
[1733413798363,0.15,101180.0,101150.0,0.32429829]
[1733413798604,0.27866799,101180.0,101150.0,0.34049539]
[1733413798823,0.197649,101190.0,101150.0,0.23175639]
[1733413799083,0.536,101200.0,101170.0,0.108722]
[1733413799307,0.63567605,101200.0,101170.0,0.217449]
[1733413799550,0.536,101200.0,101180.0,0.108716]
[1733413799786,0.29732305,101190.0,101180.0,0.00541961]
[1733413800713,0.29732305,101190.0,101180.0,0.00656741]
[1733413800971,0.29732305,101190.0,101180.0,0.0011478]
[1733413801203,0.16430921,101220.0,101190.0,0.108696]
[1733413801445,0.29728505,101210.0,101180.0,0.1098568]
[1733413801701,0.29728505,101210.0,101190.0,0.0011478]
[1733413801702,0.197628,101200.0,101190.0,0.0011478]
[1733413801937,0.29730405,101200.0,101190.0,0.0011478]
[1733413802177,0.43600421,101220.0,101190.0,0.0011478]
[1733413802429,0.29728605,101210.0,101190.0,0.0011478]
[1733413802661,0.197628,101200.0,101190.0,0.0011478]
[1733413802904,0.09967605,101200.0,101190.0,0.0011478]
[1733413803372,0.29730405,101200.0,101190.0,0.0011478]
[1733413803600,0.22830404,101200.0,101190.0,0.0011478]
[1733413803829,0.03067604,101200.0,101190.0,0.0011478]
[1733413804067,0.22830404,101200.0,101190.0,0.0011478]
[1733413804553,0.19761,101210.0,101190.0,0.0011478]
[1733413804795,0.04080921,101220.0,101190.0,0.20952085]
[1733413805029,0.197571,101230.0,101200.0,0.217375]
[1733413805269,0.395242,101210.0,101190.0,0.0011478]
[1733413805504,0.395241,101210.0,101100.0,0.11426686]
[1733413805732,0.2,101190.0,101140.0,0.20843405]
[1733413805962,0.2,101180.0,101160.0,0.00300898]
[1733413806194,0.2,101160.0,101140.0,0.09768503]
[1733413806432,0.2,101160.0,101130.0,0.217528]
[1733413806680,0.397726,101150.0,101110.0,0.217573]
[1733413806939,0.1,101130.0,101110.0,0.31724905]
[1733413807176,0.1,101130.0,101110.0,0.20845805]
[1733413807394,0.1,101110.0,101100.0,0.00296896]
[1733413807622,0.1,101100.0,101090.0,0.00031036]
[1733413807858,0.2,101100.0,101080.0,0.217638]
[1733413808085,0.2,101110.0,101080.0,0.31731305]
[1733413808320,0.1499,101120.0,101110.0,0.007]
[1733413808574,0.0499,101120.0,101110.0,0.007]
[1733413808810,0.2,101110.0,101090.0,0.00252865]
[1733413809047,0.2,101110.0,101090.0,0.00752865]
[1733413809288,0.2,101110.0,101090.0,0.3248197]
[1733413809543,0.1,101110.0,101090.0,0.03441711]
[1733413809799,0.2,101110.0,101090.0,0.108807]
[1733413810035,0.2,101110.0,101090.0,0.11174781]
[1733413810271,0.2397786,101110.0,101090.0,0.11175281]
[1733413810489,0.2,101110.0,101090.0,0.11175281]
[1733413810908,0.2,101110.0,101090.0,0.11174881]
[1733413811153,0.26361318,101130.0,101100.0,0.09967605]
[1733413811386,0.20051319,101130.0,101100.0,0.20847805]
[1733413811601,0.24034001,101130.0,101100.0,0.20847705]
[1733413811836,0.1,101100.0,101090.0,0.001]
[1733413812050,0.57587405,101120.0,101080.0,0.10913036]
[1733413812286,0.397808,101110.0,101080.0,0.09998641]
[1733413812511,0.2,101110.0,101080.0,0.09998641]
[1733413812729,0.197902,101060.0,101050.0,0.0008696]
[1733413812946,0.1,101030.0,101020.0,0.108883]
[1733413813807,0.03099999,101030.0,101020.0,0.108883]
[1733413814669,0.0784,101050.0,101020.0,0.108883]
[1733413814896,0.09967605,101040.0,101030.0,0.108871]
[1733413815528,0.09967605,101040.0,101030.0,0.108878]
[1733413815745,0.54762805,101040.0,101020.0,0.0078703]
[1733413815957,0.19967605,101030.0,101020.0,0.0008703]
[1733413816396,0.42783705,101030.0,101020.0,0.0008703]
[1733413816629,0.32987605,101030.0,101020.0,0.0008703]
[1733413816837,0.22987605,101030.0,101020.0,0.00532834]
[1733413817043,0.52783705,101030.0,101020.0,0.0008703]
[1733413817277,0.42783705,101030.0,101020.0,0.00534716]
[1733413817558,0.42783705,101030.0,101020.0,0.0008703]
[1733413817771,0.62783705,101030.0,101020.0,0.0008703]
[1733413818014,0.42883705,101030.0,101020.0,0.0008703]
[1733413818223,0.1,101020.0,100990.0,0.77543159]
[1733413818433,0.19967605,101020.0,101000.0,0.099]
[1733413818655,0.19967605,101020.0,100990.0,0.77511618]
[1733413818656,0.13067604,101010.0,100990.0,0.77511618]
[1733413818898,0.29768905,101010.0,100990.0,0.67610318]
[1733413819108,0.03099999,101000.0,100990.0,0.67610318]
[1733413819348,0.29769505,101000.0,100990.0,0.67610318]
[1733413819555,0.09967605,101000.0,100990.0,0.67610318]
[1733413820243,0.29769505,101000.0,100990.0,0.67610318]
[1733413820895,0.09967605,101000.0,100990.0,0.67610318]
[1733413821350,0.13067604,101000.0,100990.0,0.77212218]
[1733413821570,0.001,101000.0,100990.0,0.87211518]
[1733413821801,0.002,101000.0,100990.0,0.97112818]
[1733413822019,0.002,101000.0,100990.0,1.05580423]
[1733413822262,0.001,101000.0,100990.0,1.05580423]
[1733413822487,0.003,101000.0,100990.0,0.9606154]
[1733413822708,0.003,101000.0,100990.0,1.06029145]
[1733413822918,0.002,101000.0,100990.0,1.06029145]
[1733413823804,0.11399998,101040.0,101020.0,0.197966]
[1733413824031,0.21367603,101040.0,101030.0,0.09898]
[1733413824239,0.13067604,101040.0,101030.0,0.09898]
[1733413824458,0.09967605,101040.0,101030.0,0.09898]
[1733413824886,0.07619999,101060.0,101030.0,0.098972]
[1733413825119,0.09967605,101050.0,101040.0,0.098962]
[1733413825346,0.13067604,101050.0,101040.0,0.098962]
[1733413825564,0.09967605,101050.0,101030.0,0.197946]
[1733413825772,0.03099999,101040.0,101010.0,0.099]
[1733413825983,0.13067604,101040.0,101030.0,0.09898]
[1733413826212,0.09967605,101040.0,101030.0,0.09898]
[1733413826464,0.07719999,101060.0,101040.0,0.09897]
[1733413826737,0.17687604,101060.0,101050.0,0.09896]
[1733413827209,0.03199999,101060.0,101050.0,0.09896]
[1733413827420,0.0755,101070.0,101060.0,0.098951]
[1733413827662,0.0486,101080.0,101070.0,0.098941]
[1733413827894,0.17037843,101080.0,101070.0,0.098941]
[1733413828343,0.07070238,101080.0,101070.0,0.098941]
[1733413828552,0.0814,101090.0,101070.0,0.098941]
[1733413828774,0.03450237,101090.0,101070.0,0.197882]
[1733413829017,0.29854305,101080.0,101060.0,0.09895]
[1733413829254,0.001,101080.0,101060.0,0.29756405]
[1733413829488,0.002,101080.0,101070.0,0.098941]
[1733413829698,0.002,101080.0,101060.0,0.098943]
[1733413829927,0.09967605,101070.0,101040.0,0.09897]
[1733413830139,0.10984366,101070.0,101030.0,0.10192796]
[1733413830392,0.002,101080.0,101060.0,0.098951]
[1733413830604,0.002,101080.0,101070.0,0.098941]
[1733413830860,0.001,101090.0,101070.0,0.29755805]
[1733413831090,0.001,101090.0,101080.0,0.098931]
[1733413831325,0.001,101090.0,101050.0,0.198957]
[1733413831326,0.197883,101070.0,100910.0,1.25459069]
[1733413831547,0.33713485,101070.0,101040.0,0.197932]
[1733413831763,0.09967605,101070.0,101050.0,0.098954]
[1733413831970,0.29755905,101070.0,101050.0,0.197909]
[1733413832196,0.09967605,101070.0,101060.0,0.098951]
[1733413832443,0.0774,101080.0,101060.0,0.197893]
[1733413832679,0.0774,101080.0,101070.0,0.098941]
[1733413832900,0.395668,101100.0,101080.0,0.098931]
[1733413832901,0.0811,101100.0,101080.0,0.098931]
[1733413833213,0.18077605,101100.0,101080.0,0.197855]
[1733413833428,0.09967605,101090.0,101060.0,0.10196889]
[1733413833641,0.09967605,101090.0,101070.0,0.098935]
[1733413833840,0.0811,101100.0,101080.0,0.098922]
[1733413833981,0.18077605,101100.0,101090.0,0.098921]
[1733413834207,0.18077605,101100.0,101080.0,0.098922]
[1733413834436,0.18077605,101100.0,101080.0,0.197847]
[1733413834637,0.30960204,101100.0,101080.0,0.197847]
[1733413834849,0.11177604,101100.0,101090.0,0.098921]
[1733413835268,0.11277604,101100.0,101090.0,0.098921]
[1733413835468,0.11277604,101100.0,101070.0,0.098934]
[1733413835672,0.11277604,101100.0,101090.0,0.098921]
[1733413835875,0.11177604,101100.0,101090.0,0.098921]
[1733413836074,0.24511,101110.0,101060.0,0.00302689]
[1733413836075,0.0473,101110.0,101060.0,0.00302689]
[1733413836280,0.10067605,101100.0,101080.0,0.09893]
[1733413836491,0.001,101100.0,101090.0,0.098921]
[1733413836700,0.197864,101080.0,101060.0,0.00302689]
[1733413836913,0.09967605,101080.0,101060.0,0.10196789]
[1733413837120,0.09967605,101080.0,101060.0,0.20091289]
[1733413837325,0.396671,101100.0,101070.0,0.197881]
[1733413837523,0.09967605,101090.0,101070.0,0.197881]
[1733413837726,0.09967605,101090.0,101070.0,0.197875]
[1733413837952,0.49538505,101090.0,101070.0,0.098941]
[1733413838134,0.001,101100.0,101090.0,0.098921]
[1733413838569,0.322004,101110.0,101090.0,0.197837]
[1733413838570,0.1242,101110.0,101090.0,0.197837]
[1733413838779,0.09967605,101110.0,101100.0,0.098911]
[1733413838982,0.395549,101130.0,101100.0,0.197817]
[1733413839173,0.09967605,101130.0,101110.0,0.197797]
[1733413839377,0.09967605,101130.0,101110.0,0.098896]
[1733413839601,0.09967605,101130.0,101070.0,0.29861605]
[1733413839602,0.29747105,101120.0,101090.0,0.098921]
[1733413839778,0.09967605,101120.0,101070.0,0.36046669]
[1733413839991,0.197857,101090.0,101070.0,0.15]
[1733413840216,0.395676,101100.0,101070.0,0.347876]
[1733413840418,0.29751105,101100.0,101080.0,0.098931]
[1733413840661,0.29751105,101100.0,101080.0,0.197857]
[1733413840852,0.29751105,101100.0,101070.0,0.248933]
[1733413841061,0.49534705,101100.0,101070.0,0.248933]
[1733413841281,0.49534705,101100.0,101070.0,0.348868]
[1733413841489,0.14921076,101100.0,101080.0,0.09893]
[1733413841717,0.1289,101120.0,101090.0,0.098914]
[1733413841951,0.1289,101120.0,101100.0,0.098903]
[1733413841952,0.09967605,101120.0,101100.0,0.098903]
[1733413842167,0.4784002,101140.0,101110.0,0.098895]
[1733413842387,0.09967605,101130.0,101110.0,0.296693]
[1733413842588,0.73989805,101140.0,101120.0,0.098892]
[1733413842802,0.8395741,101140.0,101120.0,0.098892]
[1733413843029,0.8395711,101140.0,101110.0,0.098895]
[1733413843233,0.77583225,101140.0,101120.0,0.098892]
[1733413843438,0.97359125,101140.0,101110.0,0.098895]
[1733413843647,0.395531,101130.0,101110.0,0.098895]
[1733413843850,0.77583125,101140.0,101110.0,0.296687]
[1733413844058,0.197777,101130.0,101090.0,0.19967605]
[1733413844256,0.197777,101130.0,101100.0,0.197811]
[1733413844462,0.395554,101130.0,101100.0,0.098905]
[1733413844663,0.395554,101130.0,101110.0,0.098901]
[1733413845048,0.395554,101130.0,101100.0,0.197811]
[1733413845271,0.395554,101130.0,101090.0,0.29858805]
[1733413845272,0.09967605,101120.0,101090.0,0.198918]
[1733413845502,0.29747005,101120.0,101090.0,0.297834]
[1733413845755,0.29747005,101120.0,101090.0,0.297829]
[1733413845981,0.49526605,101120.0,101100.0,0.10365994]
[1733413846195,0.001,101110.0,101100.0,0.00474894]
[1733413846859,0.001,101110.0,101100.0,0.19858705]
[1733413847740,0.001,101110.0,101100.0,0.34858705]
[1733413847947,0.001,101110.0,101100.0,0.57786263]
[1733413848153,0.1517432,101140.0,101110.0,0.1]
[1733413848362,0.1517432,101140.0,101130.0,0.19855805]
[1733413848572,0.0017832,101160.0,101140.0,0.197732]
[1733413848794,0.32751257,101200.0,101180.0,0.098833]
[1733413849019,0.0017424,101210.0,101180.0,0.098833]
[1733413849020,0.41657006,101210.0,101190.0,0.098823]
[1733413849244,0.41657006,101210.0,101170.0,0.197676]
[1733413849245,0.10141845,101210.0,101170.0,0.197676]
[1733413849450,0.29903845,101210.0,101180.0,0.098825]
[1733413849688,0.0017424,101210.0,101200.0,0.098814]
[1733413849914,0.29902945,101210.0,101190.0,0.01386446]
[1733413850124,0.29730405,101200.0,101190.0,0.01386446]
[1733413850336,0.69427845,101210.0,101190.0,0.01386446]
[1733413850547,0.0402856,101220.0,101200.0,0.197618]
[1733413850770,0.0402856,101220.0,101180.0,0.098832]
[1733413850771,0.19762,101210.0,101180.0,0.19766]
[1733413850990,0.395239,101210.0,101180.0,0.29733605]
[1733413851192,0.59286,101210.0,101180.0,0.09967605]
[1733413851613,0.396239,101210.0,101190.0,0.01411198]
[1733413851822,0.51951754,101210.0,101190.0,0.01411198]
[1733413852069,0.29731705,101200.0,101150.0,0.25594002]
[1733413852276,0.09967605,101200.0,101190.0,0.01411198]
[1733413852515,0.44272105,101200.0,101190.0,0.01411198]
[1733413852717,0.197664,101190.0,101150.0,0.19772]
[1733413852935,0.14507605,101200.0,101150.0,0.19772]
[1733413852936,0.243041,101200.0,101160.0,0.19852805]
[1733413853166,0.197641,101200.0,101160.0,0.19852305]
[1733413853376,0.09967605,101190.0,101160.0,0.0132644]
[1733413853590,0.29733505,101190.0,101160.0,0.0132644]
[1733413853800,0.197688,101170.0,101140.0,0.07798667]
[1733413853981,0.197719,101160.0,101140.0,0.00295457]
[1733413854223,0.395438,101160.0,101140.0,0.00295457]
[1733413854430,0.49511705,101160.0,101110.0,0.20992976]
[1733413854635,0.49511705,101160.0,101120.0,0.29745805]
[1733413854863,0.197726,101150.0,101120.0,0.19856705]
[1733413855079,0.197719,101160.0,101120.0,0.29745305]
[1733413855294,0.4151648,101170.0,101130.0,0.09986971]
[1733413855516,0.395413,101160.0,101130.0,0.09967605]
[1733413855769,0.198706,101160.0,101130.0,0.09967605]
[1733413855992,0.001,101160.0,101140.0,0.09967605]
[1733413856202,0.001,101160.0,101140.0,0.30738166]
[1733413856434,0.001,101160.0,101140.0,0.10964366]
[1733413856659,0.001,101160.0,101130.0,0.0029928]
[1733413856660,0.396426,101160.0,101130.0,0.0029928]
[1733413856860,0.395466,101150.0,101130.0,0.0029928]
[1733413857335,0.74581211,101200.0,101190.0,0.62995793]
[1733413857544,0.84548816,101200.0,101190.0,0.62995793]
[1733413857752,0.93948698,101200.0,101190.0,0.62995793]
[1733413857976,0.93948698,101200.0,101190.0,0.50185793]
[1733413858442,0.84548816,101200.0,101190.0,0.50185793]
[1733413858877,0.84648816,101200.0,101190.0,0.50185793]
[1733413859320,0.86660223,101200.0,101190.0,0.50185793]
[1733413859749,0.33060223,101200.0,101190.0,0.50185793]
[1733413860172,0.32960223,101200.0,101190.0,0.50185793]
[1733413860353,0.32954745,101200.0,101190.0,0.50185793]
[1733413860570,0.33054745,101200.0,101190.0,0.50185793]
[1733413860831,0.31836634,101200.0,101190.0,0.50185793]
[1733413861036,0.31736634,101200.0,101190.0,0.50185793]
[1733413861241,0.29725227,101200.0,101190.0,0.50185793]
[1733413861451,0.29825227,101200.0,101190.0,0.50185793]
[1733413861658,0.001,101200.0,101190.0,0.50185793]
[1733413861865,0.395244,101210.0,101190.0,0.50185793]
[1733413862098,0.49491805,101210.0,101190.0,0.51414044]
[1733413862326,0.001,101200.0,101190.0,0.51414044]
[1733413863006,0.2003694,101200.0,101190.0,0.51414044]
[1733413863495,0.30004545,101200.0,101190.0,0.51414044]
[1733413863697,0.1993694,101200.0,101190.0,0.51414044]
[1733413863826,0.0017414,101200.0,101190.0,0.51414044]
[1733413864038,0.0017414,101200.0,101190.0,0.61414044]
[1733413864439,0.0017414,101200.0,101190.0,0.51414044]
[1733413864975,0.2003694,101200.0,101190.0,0.51414044]
[1733413865162,0.0027414,101200.0,101190.0,0.51414044]
[1733413865362,0.1993694,101200.0,101190.0,0.51414044]
[1733413865745,0.0017414,101200.0,101190.0,0.51414044]
[1733413866163,0.1993694,101200.0,101190.0,0.51414044]
[1733413866836,0.2003694,101200.0,101190.0,0.51414044]
[1733413867049,0.30004545,101200.0,101190.0,0.51414044]
[1733413867298,0.83604545,101200.0,101190.0,0.49437544]
[1733413867504,0.83604545,101200.0,101130.0,0.0029928]
[1733413867505,0.01016205,101140.0,101130.0,0.20877]
[1733413867710,0.01016205,101140.0,101130.0,0.1]
[1733413867928,0.20791605,101140.0,101130.0,0.01156525]
[1733413868135,0.01016205,101140.0,101130.0,0.11156525]
[1733413868382,0.01016205,101140.0,101130.0,0.3200113]
[1733413868825,0.197727,101150.0,101140.0,0.1]
[1733413869229,0.197727,101150.0,101140.0,0.11155358]
[1733413869347,0.39544,101160.0,101140.0,0.11155358]
[1733413869549,0.593163,101160.0,101140.0,0.11155358]
[1733413869789,0.593163,101160.0,101140.0,0.22031158]
[1733413869790,0.197718,101160.0,101140.0,0.22031158]
[1733413869995,0.43547279,101160.0,101140.0,0.11155358]
[1733413870200,0.197726,101150.0,101140.0,0.01155358]
[1733413870476,0.197745,101140.0,101130.0,0.1]
[1733413870733,0.29742105,101140.0,101130.0,0.1]
[1733413870951,0.197745,101140.0,101130.0,0.1]
[1733413871190,0.395465,101150.0,101130.0,0.1]
[1733413871376,0.395433,101160.0,101140.0,0.1]
[1733413871613,0.197745,101140.0,101130.0,0.1]
[1733413871754,0.197745,101140.0,101130.0,0.2]
[1733413871957,0.197745,101140.0,101130.0,0.1]
[1733413872164,0.35674225,101140.0,101130.0,0.1]
[1733413872376,0.197745,101140.0,101130.0,0.1]
[1733413873598,0.09967605,101140.0,101130.0,0.1]
[1733413873804,0.197745,101140.0,101130.0,0.1]
[1733413873974,0.395468,101150.0,101130.0,0.1]
[1733413874197,0.49514205,101150.0,101130.0,0.1]
[1733413874459,0.395466,101150.0,101130.0,0.2]
[1733413874686,0.197717,101160.0,101140.0,0.1]
[1733413874888,0.41531895,101170.0,101140.0,0.1]
[1733413875088,0.59303,101180.0,101150.0,0.1]
[1733413875225,0.59303,101180.0,101150.0,0.287747]
[1733413875226,0.24734605,101180.0,101150.0,0.287747]
[1733413875448,0.1701593,101190.0,101170.0,0.1]
[1733413875619,0.15,101190.0,101170.0,0.208726]
[1733413875820,0.15,101190.0,101180.0,0.1]
[1733413876068,0.0017414,101200.0,101190.0,0.2]
[1733413876309,0.0017414,101200.0,101190.0,0.41826405]
[1733413876532,0.0017414,101200.0,101190.0,0.19967605]
[1733413876829,0.197647,101190.0,101180.0,0.079]
[1733413877052,0.197647,101190.0,101170.0,0.1]
[1733413877257,0.395295,101190.0,101170.0,0.1]
[1733413877463,0.395305,101190.0,101170.0,0.1]
[1733413878141,0.395349,101180.0,101160.0,0.0797]
[1733413878370,0.395388,101170.0,101150.0,0.1]
[1733413878620,0.1993884,101200.0,101160.0,0.1]
[1733413878853,0.197642,101200.0,101180.0,0.1]
[1733413879282,0.39528,101200.0,101180.0,0.1]
[1733413879488,0.197638,101200.0,101180.0,0.1]
[1733413879689,0.197611,101210.0,101190.0,0.1]
[1733413879874,0.39523,101210.0,101190.0,0.1]
[1733413880402,0.1983376,101220.0,101200.0,0.1]
[1733413880613,0.0007406,101220.0,101210.0,0.1]
[1733413881266,0.0007406,101220.0,101210.0,0.31824105]
[1733413881492,0.0007406,101220.0,101210.0,0.1]
[1733413881712,0.0007406,101220.0,101210.0,0.10926197]
[1733413881930,0.1983296,101220.0,101210.0,0.00926197]
[1733413882103,0.0007406,101220.0,101210.0,0.00926197]
[1733413882337,0.0007406,101220.0,101210.0,0.20893802]
[1733413882512,0.0007406,101220.0,101210.0,0.32750302]
[1733413883196,0.0007406,101220.0,101210.0,0.42750302]
[1733413883431,0.0007406,101220.0,101210.0,0.50380302]
[1733413883655,0.0007406,101220.0,101210.0,0.49454105]
[1733413883951,0.197543,101250.0,101230.0,0.1]